[Event "35th European Club Cup 2019"]
[Site "Ulcinj"]
[Date "2019.11.12"]
[Round "3.10"]
[White "Bartos, Jan"]
[Black "Darmanovic, Srdjan"]
[Result "1/2-1/2"]
[ECO "A46"]
[WhiteElo "2136"]
[BlackElo "2192"]
[Annotator "NA"]
[PlyCount "64"]
[EventDate "2019.11.10"]
[EventType "team-tourn"]
[EventCountry "MNE"]
[SourceTitle "playchess.com"]
[Source "ChessBase"]
[SourceQuality "1"]
[WhiteTeam "Unichess"]
[BlackTeam "Buducnost"]
[TimeControl "40/5400+30:1800+30"]

1. d4 Nf6 2. Nf3 e6 3. e3 b6 4. Bd3 Bb7 5. O-O c5 6. c4 Be7 7. Nc3 cxd4 8. exd4 d6 9. d5 e5 10. Bd2 O-O 11. b4 Nbd7 12. Qc2 Rc8 13. Rfe1 a6 14. Qb3 g6 {[%emt 0:32:15]} 15. h3 {[%emt 0:46:09]} Re8 {[%emt 0:04:35]} 16. Bf1 Bf8 {[%emt 0:00:33]} 17. a4 {[%emt 0:01:45]} Bg7 {[%emt 0:05:49]} 18. Ra2 {[%emt 0:02:02]} h6 {[%emt 0:00:30]} 19. Be3 {[%emt 0:02:15]} Qc7 {[%emt 0:15:28]} 20. Rc1 {[%emt 0:04:11]} Rb8 {[%emt 0:06:29]} 21. a5 {[%emt 0:02:29]} bxa5 {[%emt 0:08:41]} 22. Rxa5 {[%emt 0:00:30]} Rec8 {[%emt 0:01:03]} 23. Qa3 {[%emt 0:03:18]} Bf8 {[%emt 0:04:02]} 24. Nd2 {[%emt 0:10:35]} Qd8 {[%emt 0:02:55]} 25. Nb3 {[%emt 0:10:30]} Kh7 {[%emt 0:04:23]} 26. Qa2 {[%emt 0:00:57]} Kg7 {[%emt 0:02:01]} 27. Qd2 {[%emt 0:01:20]} Kh7 {[%emt 0:00:12]} 28. Ra3 {[%emt 0:01:26]} Nb6 {[%emt 0:02:55]} 29. Na5 {[%emt 0:00:52]} Ba8 {[%emt 0:00:43]} 30. Na4 {[%emt 0:01:42]} Nfd7 {[%emt 0:06:06]} 31. Nxb6 {[%emt 0:02:06]} Nxb6 {[%emt 0:00:01]} 32. Nb3 {[%emt 0:01:29]} f5 {[%emt 0:03:39]} 1/2-1/2

[Event "35th European Club Cup 2019"]
[Site "Ulcinj"]
[Date "2019.11.12"]
[Round "3.11"]
[White "Netzer, Jacques"]
[Black "Noiroux, Kevin"]
[Result "1-0"]
[ECO "B01"]
[WhiteElo "2284"]
[BlackElo "2170"]
[Annotator "NA"]
[PlyCount "61"]
[EventDate "2019.11.10"]
[EventType "team-tourn"]
[EventCountry "MNE"]
[SourceTitle "playchess.com"]
[Source "ChessBase"]
[SourceQuality "1"]
[WhiteTeam "Mulhouse"]
[BlackTeam "Echiquier Mosan"]
[TimeControl "40/5400+30:1800+30"]

1. e4 {[%emt 0:00:00]} d5 {[%emt 0:00:00]} 2. exd5 {[%emt 0:00:00]} Qxd5 {[%emt 0:00:00]} 3. Nc3 {[%emt 0:00:00]} Qa5 {[%emt 0:00:00]} 4. Bc4 {[%emt 0:00:00]} Nf6 {[%emt 0:00:00]} 5. d3 {[%emt 0:00:04]} Bg4 {[%emt 0:00:10]} 6. f3 {[%emt 0:00:06]} Bd7 {[%emt 0:00:05]} 7. f4 {[%emt 0:01:25]} Qb6 {[%emt 0:14:17]} 8. Qe2 {[%emt 0:12:08]} Nc6 {[%emt 0:11:40]} 9. Nf3 {[%emt 0:00:06]} e6 {[%emt 0:01:52]} 10. Bd2 {[%emt 0:04:38]} Nd4 {[%emt 0:09:36]} 11. Nxd4 {[%emt 0:14:03]} Qxd4 {[%emt 0:00:09]} 12. Be3 {[%emt 0:01:06]} Qd6 {[%emt 0:00:23]} 13. O-O-O {[%emt 0:00:38]} a6 {[%emt 0:11:04]} 14. Rhe1 {[%emt 0:20:43]} b5 {[%emt 0:10:18]} 15. Ne4 {[%emt 0:05:40]} Qc6 {[%emt 0:01:24]} 16. Nxf6+ {[%emt 0:00:19]} gxf6 {[%emt 0:00:02]} 17. Bb3 {[%emt 0:00:19]} a5 {[%emt 0:19:59]} 18. d4 {[%emt 0:01:30]} Qe4 {[%emt 0:00:06]} 19. d5 {[%emt 0:08:05]} a4 {[%emt 0:09:37]} 20. Rd4 {[%emt 0:03:37]} Qg6 {[%emt 0:01:32]} 21. dxe6 {[%emt 0:03:35]} fxe6 {[%emt 0:00:08]} 22. Rxd7 {[%emt 0:16:37]} axb3 {[%emt 0:00:02]} 23. Rxc7 {[%emt 0:00:08]} Bd6 {[%emt 0:00:35]} 24. Qxb5+ {[%emt 0:02:37]} Kf8 {[%emt 0:00:02]} 25. f5 {[%emt 0:00:11]} exf5 {[%emt 0:04:10]} 26. Bc5 {[%emt 0:01:20]} Qg5+ {[%emt 0:02:49]} 27. Kb1 {[%emt 0:03:04]} Qd2 {[%emt 0:02:29]} 28. Bxd6+ {[%emt 0:00:23]} Qxd6 {[%emt 0:00:02]} 29. Qc4 {[%emt 0:00:13]} bxc2+ {[%emt 0:01:17]} 30. Kxc2 {[%emt 0:00:35]} Qxc7 {[%emt 0:00:37]} 31. Qxc7 {[%emt 0:00:05]} 1-0

[Event "35th European Club Cup 2019"]
[Site "Ulcinj"]
[Date "2019.11.12"]
[Round "3.11"]
[White "Alivodic, Dario"]
[Black "Lamser, Jan"]
[Result "0-1"]
[ECO "D32"]
[WhiteElo "2082"]
[BlackElo "2134"]
[Annotator "ChessBase"]
[PlyCount "103"]
[EventDate "2019.11.10"]
[EventType "team-tourn"]
[EventCountry "MNE"]
[SourceTitle "playchess.com"]
[Source "ChessBase"]
[SourceQuality "1"]
[WhiteTeam "Buducnost"]
[BlackTeam "Unichess"]
[TimeControl "40/5400+30:1800+30"]

1. d4 d5 2. c4 e6 3. Nc3 c5 4. cxd5 exd5 5. Nf3 Nc6 6. e3 Nf6 7. Be2 Be7 8. O-O O-O 9. b3 Re8 10. Bb2 Bg4 11. Rc1 Bxf3 12. Bxf3 cxd4 13. exd4 Bb4 14. a3 Bxc3 15. Bxc3 Ne4 16. Bb2 Qb6 17. Qd3 Re6 18. Bg4 Re7 19. b4 Rae8 20. Rfe1 Ne5 21. Qd1 Nc4 22. Ba1 Kf8 23. Be2 Qf6 24. f3 {[%emt 1:35:30]} Ned2 {[%emt 1:13:00]} 25. Kh1 Qg5 {[%emt 0:00:28]} 26. f4 {[%emt 0:03:18]} Qxf4 {[%emt 0:00:35]} 27. Bc3 {[%emt 0:02:01]} Qf2 {[%emt 0:00:46]} 28. Rg1 {[%emt 0:02:40]} Rxe2 29. Bxd2 {[%emt 0:00:11]} Rxd2 {[%emt 0:00:57]} 30. Qh5 {[%emt 0:00:08]} Qxd4 {[%emt 0:03:16]} 31. Qxh7 {[%emt 0:00:41]} Ree2 {[%emt 0:03:22]} 32. Qh8+ {[%emt 0:00:17]} Ke7 {[%emt 0:00:05]} 33. Qc8 {[%emt 0:00:19]} Qe4 {[%emt 0:01:35]} 34. Qxb7+ {[%emt 0:00:28]} Kf8 {[%emt 0:00:53]} 35. Qb8+ {[%emt 0:01:05]} Qe8 {[%emt 0:00:14]} 36. Qxa7 {[%emt 0:00:24]} g6 {[%emt 0:02:39]} 37. Rcf1 {[%emt 0:00:51]} Ne3 {[%emt 0:01:00]} 38. Re1 {[%emt 0:00:35]} Nf5 {[%emt 0:01:14]} 39. Rxe2 {[%emt 0:00:30]} Qxe2 {[%emt 0:00:15]} 40. Qb8+ {[%emt 0:00:00]} Kg7 41. b5 {[%emt 0:02:37]} Nd4 {[%emt 0:05:13]} 42. Qg3 {[%emt 0:11:10]} Nxb5 {[%emt 0:01:12]} 43. a4 {[%emt 0:00:08]} Rd3 {[%emt 0:02:01]} 44. Qf4 {[%emt 0:00:53]} Nd4 {[%emt 0:00:57]} 45. a5 {[%emt 0:01:09]} Qe4 {[%emt 0:03:03]} 46. Qf2 {[%emt 0:00:33]} Qe3 {[%emt 0:02:17]} 47. Qb2 {[%emt 0:01:09]} Rd2 {[%emt 0:01:54]} 48. Qa1 {[%emt 0:00:06]} Kh7 {[%emt 0:02:14]} 49. a6 {[%emt 0:00:34]} Nf5 50. Qf6 {[%emt 0:00:57]} Qe7 {[%emt 0:04:44]} 51. Qc3 {[%emt 0:03:47]} Ra2 {[%emt 0:00:27]} 52. Qb3 {[%emt 0:01:58]} 0-1

[Event "35th European Club Cup 2019"]
[Site "Ulcinj"]
[Date "2019.11.12"]
[Round "3.12"]
[White "Vanek, Petr"]
[Black "Vuckovic, Marko"]
[Result "1-0"]
[ECO "B23"]
[WhiteElo "2049"]
[BlackElo "2054"]
[Annotator "NA"]
[PlyCount "50"]
[EventDate "2019.11.10"]
[EventType "team-tourn"]
[EventCountry "MNE"]
[SourceTitle "playchess.com"]
[Source "ChessBase"]
[SourceQuality "1"]
[WhiteTeam "Unichess"]
[BlackTeam "Buducnost"]
[TimeControl "40/5400+30:1800+30"]

1. e4 {[%emt 0:00:10]} c5 {[%emt 0:00:00]} 2. Nc3 {[%emt 0:00:30]} e6 {[%emt 0:00:03]} 3. g3 {[%emt 0:00:30]} Nc6 {[%emt 0:00:00]} 4. Bg2 {[%emt 0:00:00]} a6 {[%emt 0:00:53]} 5. d3 {[%emt 0:00:00]} Nf6 {[%emt 0:01:32]} 6. f4 {[%emt 0:00:02]} d5 {[%emt 0:00:30]} 7. e5 {[%emt 0:00:00]} Nd7 {[%emt 0:02:03]} 8. Nf3 {[%emt 0:00:08]} b5 {[%emt 0:00:51]} 9. O-O {[%emt 0:01:01]} Be7 {[%emt 0:04:22]} 10. Ne2 {[%emt 0:01:55]} Bb7 {[%emt 0:00:36]} 11. c3 {[%emt 0:01:03]} a5 {[%emt 0:04:35]} 12. Kh1 {[%emt 0:02:56]} a4 {[%emt 0:06:28]} 13. d4 {[%emt 0:00:30]} b4 {[%emt 0:02:39]} 14. f5 {[%emt 0:00:50]} exf5 {[%emt 0:03:04]} 15. Nf4 {[%emt 0:26:01]} Nb6 {[%emt 0:00:30]} 16. dxc5 {[%emt 0:00:38]} Bxc5 {[%emt 0:03:02]} 17. Nd4 {[%emt 0:06:04]} Bxd4 {[%emt 0:01:34]} 18. cxd4 {[%emt 0:00:30]} O-O {[%emt 0:08:09]} 19. g4 {[%emt 0:13:44]} fxg4 {[%emt 0:00:17]} 20. Qxg4 {[%emt 0:02:35]} Ne7 {[%emt 0:00:30]} 21. Nh5 {[%emt 0:01:11]} Ng6 {[%emt 0:04:02]} 22. Bg5 {[%emt 0:12:11]} Qc8 {[%emt 0:00:46]} 23. Qg3 {[%emt 0:14:05]} h6 {[%emt 0:05:48]} 24. Be7 {[%emt 0:01:32]} Re8 {[%emt 0:00:41]} 25. Bc5 {[%emt 0:00:00]} Qc6 {[%emt 0:37:35]} 1-0

[Event "35th European Club Cup 2019"]
[Site "Ulcinj"]
[Date "2019.11.12"]
[Round "3.12"]
[White "Bikady, Claude"]
[Black "Richard, Emma"]
[Result "1/2-1/2"]
[ECO "A46"]
[WhiteElo "1912"]
[BlackElo "2157"]
[Annotator "NA"]
[PlyCount "61"]
[EventDate "2019.11.10"]
[EventType "team-tourn"]
[EventCountry "MNE"]
[SourceTitle "playchess.com"]
[Source "ChessBase"]
[SourceQuality "1"]
[WhiteTeam "Echiquier Mosan"]
[BlackTeam "Mulhouse"]
[TimeControl "40/5400+30:1800+30"]

1. d4 Nf6 2. Nf3 e6 3. Bf4 d5 4. e3 Bd6 5. Bg3 O-O 6. Nbd2 c5 7. c3 Qc7 8. Bd3 Nbd7 9. Qe2 e5 10. dxe5 Bxe5 11. Bxe5 Nxe5 12. Nxe5 Qxe5 13. Nf3 Qe7 14. h3 b6 15. O-O Ne4 16. Rfe1 {[%emt 0:31:46]} Bb7 {[%emt 0:41:11]} 17. a4 {[%emt 0:03:33]} a5 {[%emt 0:03:50]} 18. Qc2 {[%emt 0:04:10]} Rad8 {[%emt 0:06:42]} 19. Rad1 {[%emt 0:10:28]} h6 {[%emt 0:04:57]} 20. Bb5 {[%emt 0:08:06]} Rd6 {[%emt 0:08:06]} 21. Kh2 {[%emt 0:05:40]} Rfd8 {[%emt 0:01:37]} 22. Qe2 {[%emt 0:02:37]} g5 {[%emt 0:13:57]} 23. Nd2 {[%emt 0:15:48]} Nf6 {[%emt 0:09:01]} 24. g3 {[%emt 0:09:53]} Kg7 {[%emt 0:06:57]} 25. Qf1 {[%emt 0:05:10]} h5 26. Be2 {[%emt 0:00:36]} g4 {[%emt 0:03:00]} 27. h4 {[%emt 0:00:11]} Nd7 {[%emt 0:01:13]} 28. f4 {[%emt 0:04:12]} Nf6 {[%emt 0:02:09]} 29. Bd3 {[%emt 0:00:30]} Ne4 {[%emt 0:00:30]} 30. Nxe4 {[%emt 0:00:20]} dxe4 31. Be2 1/2-1/2

[Event "35th European Club Cup 2019"]
[Site "Ulcinj"]
[Date "2019.11.12"]
[Round "3.13"]
[White "Pijpers, Arthur"]
[Black "Vedder, Henk"]
[Result "1-0"]
[ECO "C11"]
[WhiteElo "2473"]
[BlackElo "2342"]
[Annotator "ChessBase"]
[PlyCount "89"]
[EventDate "2019.11.10"]
[EventType "team-tourn"]
[EventCountry "MNE"]
[SourceTitle "playchess.com"]
[Source "ChessBase"]
[SourceQuality "1"]
[WhiteTeam "LSG IntelliMagic"]
[BlackTeam "En Passant"]
[TimeControl "40/5400+30:1800+30"]

1. e4 e6 2. d4 d5 3. Nc3 Nf6 4. e5 Nfd7 5. f4 c5 6. Nf3 Nc6 7. Be3 cxd4 8. Nxd4 Bc5 9. Qd2 Nxd4 10. Bxd4 Bxd4 11. Qxd4 Qb6 12. Nb5 Qxd4 13. Nxd4 Ke7 14. Be2 a6 15. Rc1 Nb6 16. h4 h5 17. Rh3 Na4 18. c4 Rd8 19. c5 Nxb2 20. Bxh5 Nc4 21. Be2 Bd7 22. Bxc4 dxc4 23. Rxc4 Rac8 24. Rhc3 Bc6 25. Nxc6+ Rxc6 26. a4 f6 27. exf6+ Kxf6 28. g4 Rd5 29. Ke2 g6 30. Ke3 Rd1 31. Rb4 Rc7 32. Ke4 Re1+ 33. Re3 Rxe3+ 34. Kxe3 Rxc5 35. Rxb7 Rc4 36. a5 Ra4 37. h5 gxh5 38. g5+ Kf5 39. Rf7+ Kg4 40. g6 Ra3+ 41. Ke4 Rg3 42. g7 Kh3 43. Ke5 Rg6 44. f5 exf5 45. Kxf5 1-0

[Event "35th European Club Cup 2019"]
[Site "Ulcinj"]
[Date "2019.11.12"]
[Round "3.13"]
[White "Leenhouts, Koen"]
[Black "Kjartansson, Gudmundur"]
[Result "1-0"]
[ECO "D31"]
[WhiteElo "2424"]
[BlackElo "2454"]
[Annotator "ChessBase"]
[PlyCount "69"]
[EventDate "2019.11.10"]
[EventType "team-tourn"]
[EventCountry "MNE"]
[SourceTitle "playchess.com"]
[Source "ChessBase"]
[SourceQuality "1"]
[WhiteTeam "HWP Sas van Gent"]
[BlackTeam "Reykjavik CC"]
[TimeControl "40/5400+30:1800+30"]

1. d4 {[%emt 0:00:00]} d5 {[%emt 0:00:00]} 2. c4 {[%emt 0:00:00]} e6 {[%emt 0:00:00]} 3. Nc3 {[%emt 0:00:00]} c6 {[%emt 0:00:00]} 4. e4 {[%emt 0:00:18]} dxe4 {[%emt 0:00:05]} 5. Nxe4 {[%emt 0:00:00]} Bb4+ {[%emt 0:00:04]} 6. Bd2 {[%emt 0:00:00]} Qxd4 {[%emt 0:00:07]} 7. Bxb4 {[%emt 0:00:09]} Qxe4+ {[%emt 0:00:05]} 8. Be2 {[%emt 0:00:12]} Na6 {[%emt 0:00:28]} 9. Ba5 {[%emt 0:00:18]} b6 {[%emt 0:00:45]} 10. Qd6 {[%emt 0:01:10]} Bd7 {[%emt 0:02:00]} 11. Bc3 {[%emt 0:04:24]} f6 {[%emt 0:00:58]} 12. O-O-O O-O-O {[%emt 0:01:53]} 13. Qa3 {[%emt 0:00:55]} Kb7 {[%emt 0:00:44]} 14. Bf3 {[%emt 0:00:13]} Qf4+ {[%emt 0:01:54]} 15. Rd2 {[%emt 0:00:08]} Qc7 {[%emt 0:16:12]} 16. Ne2 {[%emt 0:00:08]} e5 {[%emt 0:00:17]} 17. Ng3 {[%emt 0:00:44]} Nh6 {[%emt 0:04:53]} 18. Rhd1 {[%emt 0:01:30]} Nf7 {[%emt 0:16:03]} 19. b4 {[%emt 0:18:05]} Be6 {[%emt 0:15:35]} 20. b5 {[%emt 0:03:17]} Nb8 {[%emt 0:00:10]} 21. Ne4 {[%emt 0:22:22]} Rxd2 {[%emt 0:23:06]} 22. Rxd2 {[%emt 0:01:10]} Rd8 {[%emt 0:00:57]} 23. bxc6+ {[%emt 0:14:21]} Nxc6 {[%emt 0:00:12]} 24. Nc5+ {[%emt 0:01:59]} bxc5 {[%emt 0:00:11]} 25. Ba5 {[%emt 0:00:25]} Rxd2 {[%emt 0:08:27]} 26. Qb3+ {[%emt 0:12:57]} Kc8 {[%emt 0:00:29]} 27. Bxc7 {[%emt 0:00:08]} Rd4 {[%emt 0:01:01]} 28. Qb5 {[%emt 0:01:39]} Rxc4+ {[%emt 0:01:17]} 29. Kd1 {[%emt 0:00:15]} e4 {[%emt 0:02:08]} 30. Qxc6 {[%emt 0:01:01]} Rd4+ {[%emt 0:01:18]} 31. Ke1 {[%emt 0:00:41]} Bd7 {[%emt 0:00:38]} 32. Qxc5 {[%emt 0:00:41]} exf3 {[%emt 0:00:17]} 33. Bb6+ {[%emt 0:01:03]} Kb7 {[%emt 0:00:16]} 34. Qc7+ {[%emt 0:00:08]} Ka6 {[%emt 0:00:06]} 35. Bxd4 {[%emt 0:00:08]} 1-0

[Event "35th European Club Cup 2019"]
[Site "Ulcinj"]
[Date "2019.11.12"]
[Round "3.14"]
[White "Gretarsson, Helgi Ass"]
[Black "Cardon, Helmut"]
[Result "*"]
[ECO "A05"]
[WhiteElo "2415"]
[BlackElo "2398"]
[Annotator "NA RC"]
[PlyCount "78"]
[EventDate "2019.11.10"]
[EventType "team-tourn"]
[EventCountry "MNE"]
[SourceTitle "playchess.com"]
[Source "ChessBase"]
[SourceQuality "1"]
[WhiteTeam "Reykjavik CC"]
[BlackTeam "HWP Sas van Gent"]
[TimeControl "40/5400+30:1800+30"]

1. Nf3 Nf6 2. c4 e6 3. Nc3 d5 4. d4 Nbd7 5. cxd5 exd5 6. Bg5 Be7 7. e3 O-O 8. Bd3 Re8 9. Qc2 Nf8 10. h3 Be6 11. O-O Nh5 12. Bxe7 Qxe7 13. Rfe1 Rad8 14. b4 c6 15. Na4 Rd6 16. Nc5 Bc8 {[%emt 1:18:43]} 17. a4 Ng6 {[%emt 0:06:51]} 18. b5 {[%emt 1:20:59]} b6 {[%emt 0:00:52]} 19. Nb3 {[%emt 0:00:08]} Bd7 {[%emt 0:00:30]} 20. Rec1 {[%emt 0:09:18]} Nf6 {[%emt 0:01:24]} 21. Bxg6 {[%emt 0:04:32]} hxg6 {[%emt 0:00:02]} 22. Qe2 {[%emt 0:00:06]} Ra8 {[%emt 0:09:22]} 23. Ne5 {[%emt 0:00:21]} Qe8 {[%emt 0:02:03]} 24. Ra2 {[%emt 0:02:25]} cxb5 {[%emt 0:00:52]} 25. Nxd7 {[%emt 0:00:06]} Rxd7 {[%emt 0:00:13]} 26. axb5 {[%emt 0:00:12]} Ne4 {[%emt 0:00:14]} 27. Rc6 {[%emt 0:00:41]} Rc8 {[%emt 0:00:42]} 28. Qc2 {[%emt 0:01:53]} Nd6 {[%emt 0:00:11]} 29. Nd2 {[%emt 0:00:42]} Re7 {[%emt 0:01:06]} 30. Rxc8 {[%emt 0:02:38]} Qxc8 {[%emt 0:00:01]} 31. Qxc8+ {[%emt 0:00:01]} Nxc8 {[%emt 0:00:01]} 32. Rc2 {[%emt 0:00:02]} Nd6 {[%emt 0:00:12]} 33. Nf3 {[%emt 0:00:06]} f6 {[%emt 0:01:48]} 34. g4 {[%emt 0:00:42]} Nxb5 {[%emt 0:00:38]} 35. Rc8+ {[%emt 0:00:01]} Kf7 {[%emt 0:00:14]} 36. g5 {[%emt 0:00:05]} Nc7 {[%emt 0:00:52]} 37. h4 {[%emt 0:02:17]} a5 {[%emt 0:00:09]} 38. Nd2 {[%emt 0:00:20]} a4 {[%emt 0:00:24]} 39. Rb8 {[%emt 0:00:46]} Re6 {[%emt 0:01:27]} *

[Event "35th European Club Cup 2019"]
[Site "Ulcinj"]
[Date "2019.11.12"]
[Round "3.14"]
[White "Van de Griendt, Jan Willem"]
[Black "Sprenger, Jan Michael"]
[Result "1/2-1/2"]
[ECO "A40"]
[WhiteElo "2340"]
[BlackElo "2492"]
[Annotator "ChessBase"]
[PlyCount "61"]
[EventDate "2019.11.10"]
[EventType "team-tourn"]
[EventCountry "MNE"]
[SourceTitle "playchess.com"]
[Source "ChessBase"]
[SourceQuality "1"]
[WhiteTeam "En Passant"]
[BlackTeam "LSG IntelliMagic"]
[TimeControl "40/5400+30:1800+30"]

1. d4 {[%emt 0:00:00]} Nf6 {[%emt 0:00:00]} 2. c4 {[%emt 0:00:00]} e6 {[%emt 0:00:00]} 3. g3 {[%emt 0:00:00]} d5 {[%emt 0:04:48]} 4. Nf3 {[%emt 0:00:34]} Bb4+ {[%emt 0:01:31]} 5. Bd2 {[%emt 0:00:07]} Be7 {[%emt 0:00:04]} 6. Bg2 {[%emt 0:00:06]} O-O {[%emt 0:00:04]} 7. O-O {[%emt 0:00:07]} c6 {[%emt 0:00:34]} 8. Qc2 {[%emt 0:00:07]} b6 {[%emt 0:01:43]} 9. Rd1 {[%emt 0:00:18]} Ba6 {[%emt 0:02:15]} 10. b3 {[%emt 0:01:48]} Nbd7 {[%emt 0:00:51]} 11. a4 {[%emt 0:00:35]} c5 {[%emt 0:28:34]} 12. Na3 {[%emt 0:01:14]} Bb7 {[%emt 0:03:50]} 13. Qb2 {[%emt 0:02:42]} Ne4 {[%emt 0:03:28]} 14. Be1 {[%emt 0:01:40]} Bf6 {[%emt 0:04:05]} 15. e3 {[%emt 0:00:28]} Qc7 {[%emt 0:08:59]} 16. Rac1 {[%emt 0:33:18]} Rac8 {[%emt 0:00:48]} 17. Qb1 {[%emt 0:06:17]} Qb8 {[%emt 0:01:24]} 18. cxd5 {[%emt 0:16:18]} exd5 {[%emt 0:06:33]} 19. Nb5 {[%emt 0:04:15]} Rfe8 {[%emt 0:04:48]} 20. Nc3 {[%emt 0:11:13]} Nf8 {[%emt 0:08:13]} 21. dxc5 {[%emt 0:04:25]} Bxc3 {[%emt 0:01:22]} 22. Bxc3 {[%emt 0:00:13]} Nxc3 {[%emt 0:02:20]} 23. Rxc3 {[%emt 0:00:08]} bxc5 {[%emt 0:02:08]} 24. b4 {[%emt 0:03:21]} d4 {[%emt 0:05:01]} 25. exd4 {[%emt 0:01:57]} Be4 {[%emt 0:00:16]} 26. Qb3 {[%emt 0:06:44]} Qxb4 {[%emt 0:00:49]} 27. Qc4 {[%emt 0:02:33]} Qxc4 {[%emt 0:03:01]} 28. Rxc4 {[%emt 0:00:02]} cxd4 {[%emt 0:00:11]} 29. Rcxd4 {[%emt 0:01:26]} Bc2 {[%emt 0:01:28]} 30. Ra1 {[%emt 0:01:22]} h6 {[%emt 0:02:34]} 31. h4 {[%emt 0:00:26]} 1/2-1/2

[Event "35th European Club Cup 2019"]
[Site "Ulcinj"]
[Date "2019.11.12"]
[Round "3.15"]
[White "Van Haastert, Edwin"]
[Black "Vedder, Richard"]
[Result "1-0"]
[ECO "D20"]
[WhiteElo "2439"]
[BlackElo "2257"]
[Annotator "ChessBase"]
[PlyCount "119"]
[EventDate "2019.11.10"]
[EventType "team-tourn"]
[EventCountry "MNE"]
[SourceTitle "playchess.com"]
[Source "ChessBase"]
[SourceQuality "1"]
[WhiteTeam "LSG IntelliMagic"]
[BlackTeam "En Passant"]
[TimeControl "40/5400+30:1800+30"]

1. d4 {[%emt 0:00:00]} d5 {[%emt 0:00:00]} 2. c4 {[%emt 0:00:00]} dxc4 {[%emt 0:00:00]} 3. e4 e5 {[%emt 0:04:29]} 4. Nf3 {[%emt 0:00:00]} exd4 {[%emt 0:00:07]} 5. Bxc4 {[%emt 0:00:04]} Nc6 {[%emt 0:00:09]} 6. O-O {[%emt 0:00:20]} Be6 {[%emt 0:01:26]} 7. Bb5 Bc5 {[%emt 0:06:42]} 8. b4 {[%emt 0:00:38]} Bb6 {[%emt 0:00:29]} 9. a4 {[%emt 0:00:00]} a6 {[%emt 0:01:14]} 10. Bxc6+ bxc6 {[%emt 0:00:02]} 11. Bb2 {[%emt 0:00:52]} Bg4 {[%emt 0:08:12]} 12. a5 {[%emt 0:08:17]} Ba7 {[%emt 0:00:32]} 13. Nbd2 {[%emt 0:16:05]} Rb8 {[%emt 0:08:59]} 14. Qc2 {[%emt 0:02:32]} Ne7 {[%emt 0:06:07]} 15. Qc4 {[%emt 0:00:34]} c5 {[%emt 0:10:27]} 16. Qxa6 {[%emt 0:04:17]} Nc8 {[%emt 0:00:19]} 17. Ne5 {[%emt 0:21:00]} Bd7 {[%emt 0:00:27]} 18. Nxd7 {[%emt 0:01:26]} Qxd7 {[%emt 0:00:09]} 19. Nc4 {[%emt 0:00:46]} O-O {[%emt 0:18:07]} 20. bxc5 {[%emt 0:02:44]} Bxc5 {[%emt 0:00:11]} 21. Ne5 {[%emt 0:09:39]} Qb5 {[%emt 0:05:54]} 22. Qxb5 {[%emt 0:00:07]} Rxb5 {[%emt 0:00:02]} 23. Nd3 {[%emt 0:00:13]} Ba7 {[%emt 0:00:48]} 24. Rfc1 {[%emt 0:01:46]} c5 {[%emt 0:00:18]} 25. Ba3 {[%emt 0:12:32]} Rxa5 {[%emt 0:01:08]} 26. Nxc5 {[%emt 0:01:07]} Re8 {[%emt 0:00:50]} 27. Nd3 {[%emt 0:00:40]} f6 {[%emt 0:05:35]} 28. f3 {[%emt 0:00:28]} Ne7 {[%emt 0:01:23]} 29. Bxe7 {[%emt 0:01:56]} Rxa1 {[%emt 0:00:10]} 30. Rxa1 {[%emt 0:00:04]} Rxe7 {[%emt 0:00:04]} 31. Kf2 {[%emt 0:00:31]} Rb7 {[%emt 0:00:25]} 32. Ke2 {[%emt 0:00:44]} Kf7 {[%emt 0:00:37]} 33. Ra6 {[%emt 0:00:31]} Rc7 {[%emt 0:02:29]} 34. Nb4 {[%emt 0:01:34]} Bc5 {[%emt 0:03:47]} 35. Nd5 {[%emt 0:00:16]} Rb7 {[%emt 0:00:27]} 36. Rc6 {[%emt 0:00:53]} Rb2+ {[%emt 0:02:02]} 37. Kd3 {[%emt 0:00:18]} Bf8 {[%emt 0:00:04]} 38. Rc7+ {[%emt 0:03:17]} Kg6 {[%emt 0:02:27]} 39. Nf4+ {[%emt 0:00:32]} Kh6 {[%emt 0:00:21]} 40. Ne6 {[%emt 0:00:00]} Rb8 {[%emt 0:00:00]} 41. Rf7 {[%emt 0:03:36]} Bd6 {[%emt 0:05:17]} 42. Nxg7 {[%emt 0:00:39]} Kg6 {[%emt 0:01:34]} 43. Rd7 {[%emt 0:00:16]} Rb3+ {[%emt 0:03:59]} 44. Kxd4 {[%emt 0:01:35]} Bxh2 {[%emt 0:02:12]} 45. Ne6 {[%emt 0:01:13]} h5 {[%emt 0:00:48]} 46. f4 h4 47. f5+ {[%emt 0:07:09]} Kh6 {[%emt 0:04:31]} 48. Nf8 {[%emt 0:04:18]} Be5+ {[%emt 0:03:26]} 49. Kd5 {[%emt 0:00:13]} Rb5+ {[%emt 0:04:45]} 50. Kc4 {[%emt 0:01:54]} Ra5 {[%emt 0:00:53]} 51. Rh7+ {[%emt 0:00:36]} Kg5 {[%emt 0:00:02]} 52. Ne6+ {[%emt 0:00:17]} Kg4 {[%emt 0:00:01]} 53. Rg7+ {[%emt 0:00:10]} Kh5 {[%emt 0:00:03]} 54. Rg6 {[%emt 0:02:20]} h3 {[%emt 0:00:06]} 55. gxh3 {[%emt 0:00:38]} Ra1 {[%emt 0:01:22]} 56. Nc5 {[%emt 0:02:56]} Rc1+ {[%emt 0:02:41]} 57. Kd5 {[%emt 0:00:36]} Rd1+ {[%emt 0:00:04]} 58. Ke6 {[%emt 0:00:23]} Rd6+ {[%emt 0:02:17]} 59. Kf7 {[%emt 0:05:29]} Kh4 {[%emt 0:00:50]} 60. Ke7 {[%emt 0:03:14]} 1-0